fUSD/lending_fUSD_20240213
["ID","MTS","AMOUNT","RATE_DAILY","PERIOD"]
[313949403,1707847840953,-150.0,0.00022999,2]
[313949405,1707847840962,-150.0,0.00022999,2]
[313949407,1707847840971,-150.0,0.00022999,2]
[313949409,1707847840980,-150.0,0.00022999,2]
[313949411,1707847840989,-150.0,0.00022999,2]
[313949413,1707847840998,-150.0,0.00022999,2]
[313949415,1707847841007,-150.0,0.00022999,2]
[313949417,1707847841017,-150.0,0.00022999,2]
[313949419,1707847841026,-247.84161487,0.00022999,2]
[313949421,1707847841036,-500.0,0.00022999,2]
[313949423,1707847841045,-342.43134755,0.00022999,2]
[313949425,1707847841055,-536.34920755,0.00022999,2]
[313949427,1707847841064,-500.0,0.00022999,2]
[313949429,1707847841074,-484.15525349,0.00022999,2]
[313949431,1707847841083,-500.0,0.00022999,2]
[313949433,1707847841093,-500.0,0.00022999,2]
[313949435,1707847841106,-500.0,0.00022999,2]
[313949437,1707847841116,-500.0,0.00022999,2]
[313949439,1707847841126,-500.0,0.00022999,2]
[313949441,1707847841136,-500.0,0.00022999,2]
[313949443,1707847841145,-500.0,0.00022999,2]
[313949445,1707847841154,-500.0,0.00022999,2]
[313949447,1707847841162,-500.0,0.00022999,2]
[313949449,1707847841171,-500.0,0.00022999,2]
[313949451,1707847841182,-500.0,0.00022999,2]
[313949453,1707847841191,-500.0,0.00022999,2]
[313949455,1707847841200,-500.0,0.00022999,2]
[313949457,1707847841209,-500.0,0.00022999,2]
[313949459,1707847841218,-500.0,0.00022999,2]
[313949461,1707847841227,-181.77154784,0.00022999,2]
[313949463,1707847841236,-500.0,0.00022999,2]
[313949465,1707847841245,-500.0,0.00022999,2]
[313949467,1707847841256,-500.0,0.00022999,2]
[313949469,1707847841266,-500.0,0.00022999,2]
[313949471,1707847841275,-500.0,0.00022999,2]
[313949473,1707847841283,-500.0,0.00022999,2]
[313949475,1707847841294,-500.0,0.00022999,2]
[313949477,1707847841304,-500.0,0.00022999,2]
[313949479,1707847841314,-500.0,0.00022999,2]
[313949481,1707847841323,-500.0,0.00022999,2]
[313949483,1707847841333,-500.0,0.00022999,2]
[313949485,1707847841342,-1285.45510908,0.00023,3]
[313949487,1707847841351,-9476751.49915246,0.00023,2]
[313949493,1707847841655,-2850.93961544,0.00023,2]
[313949494,1707847841688,-24405.73,0.00023,2]
[313949495,1707847841720,-24610.2376308,0.00023,2]
[313949498,1707847841946,-8384.107872,0.00023,2]
[313949499,1707847841958,-496.63499997,0.00023,2]
[313949500,1707847841969,-637.94713393,0.00023,2]
[313949501,1707847842616,-601.70683773,0.00023,2]
[313949507,1707847843045,-979.22,0.00023,2]
[313949508,1707847843164,-4028.39005465,0.00023,2]
[313949509,1707847843219,-4140.24221167,0.00023,2]
[313949510,1707847843282,-54299.56987649,0.00023,2]
[313949511,1707847843396,-2979.03458569,0.00023,2]
[313949512,1707847843412,-535.21366537,0.00023,2]
[313949513,1707847843424,-22163.9895,0.00023,2]
[313949522,1707847846092,-483.42914929,0.00022861,2]
[313949523,1707847846103,-2.93649388,0.00023,2]
[313949524,1707847846117,-24420.5229713,0.00023,2]
[313949525,1707847846565,-2758.68181389,0.00023,2]
[313949526,1707847846577,-5993.37071242,0.00023,2]
[313949529,1707847846751,-75254.81321657,0.00023,2]
[313949531,1707848044083,206.0,0.00021471,2]
[313949532,1707848098479,207.03,0.00022273,2]
[313949533,1707848113748,150.0,0.00022272,2]
[313949534,1707848113768,150.0,0.00022272,2]
[313949535,1707848113788,150.0,0.00022272,2]
[313949536,1707848113809,150.0,0.00022272,2]
[313949537,1707848113830,150.0,0.00022272,2]
[313949538,1707848113852,150.0,0.00022272,2]
[313949539,1707848113873,150.0,0.00022272,2]
[313949540,1707848113893,150.0,0.00022272,2]
[313949541,1707848113913,150.0,0.00022272,2]
[313949542,1707848113935,150.0,0.00022272,2]
[313949543,1707848113956,150.0,0.00022272,2]
[313949544,1707848113978,150.0,0.00022272,2]
[313949545,1707848113999,158.69422763,0.00022272,2]
[313949546,1707848114019,41.30577237,0.00022272,2]
[313949547,1707848188263,150.0,0.00022153,2]
[313949548,1707848188285,100.0,0.00022153,2]
[313949549,1707848197973,50.0,0.00022119,2]
[313949550,1707848197994,150.0,0.00022119,2]
[313949551,1707848198014,150.0,0.00022119,2]
[313949552,1707848198033,663.82,0.00022119,2]
[313949553,1707848252041,21502.84,0.00022269,2]
[313949554,1707848281541,507.2,0.00022093,2]
[313949555,1707848298860,20225.28,0.00022093,2]
[313949556,1707848309786,675.92,0.00020212,2]
[313949557,1707848333044,168.95,0.00022093,2]
[313949558,1707848339966,250.0,0.00022093,2]
[313949559,1707848404714,206.0,0.00022398,2]
[313949560,1707848474969,153.56,0.00022186,2]
[313949561,1707848475234,153.56,0.00022378,2]
[313949562,1707848506908,168.08,0.00021908,2]
[313949563,1707848522088,1344.5018717,0.00022115,2]
[313949564,1707848522402,1344.5018717,0.00022391,2]
[313949565,1707848601000,2000.0,0.00021931,2]
[313949566,1707848636747,205.27,0.00021921,2]
[313949567,1707848645869,1344.5018717,0.00022247,2]
[313949568,1707848671966,173.46,0.00021913,2]
[313949569,1707848678639,250.0,0.00021918,2]
[313949570,1707848723064,301.856441,0.00022327,2]
[313949571,1707848739485,870.73,0.00021857,2]
[313949572,1707848747598,594.24,0.00021842,2]
[313949573,1707848770968,160.58953352,0.00022335,2]
[313949574,1707848773815,500.0,0.00021843,2]
[313949575,1707848782566,150.0,0.00021766,2]
[313949576,1707848789518,2512.47302928,0.0002,2]
[313949577,1707848805091,250.0,0.00021847,2]
[313949578,1707848808428,150.0,0.00021766,2]
[313949579,1707848809115,667.61,0.00019938,2]
[313949580,1707848809373,667.61,0.00022202,2]
[313949581,1707848809687,150.0,0.00022314,2]
[313949582,1707848813406,151.95567312,0.00022,2]
[313949583,1707848828877,2487.31356369,0.00022081,2]
[313949584,1707848863388,155.20292173,0.00022326,2]
[313949585,1707848866345,1302.01412096,0.0002186,2]
[313949586,1707848879509,2514.95159095,0.0002,2]
[313949587,1707848897542,2514.95159095,0.0002,2]
[313949590,1707848917960,2514.95159095,0.0002,2]
[313949591,1707848939522,2514.95159095,0.0002,2]
[313949593,1707848946863,152.58,0.00021916,2]
[313949594,1707848947135,152.58,0.00022079,2]
[313949595,1707848947343,152.58,0.00022242,2]
[313949596,1707848955537,2400.40931108,0.0002,2]
[313949599,1707848994119,1051.3255843,0.00022399,2]
[313949600,1707848994293,229.63290443,0.00022399,2]
[313949601,1707848994360,402.76603071,0.00022399,2]
[313949602,1707848994430,366.13765275,0.00022399,2]
[313949603,1707848996954,420.44975688,0.00022399,2]
[313949604,1707848997717,290.58241428,0.00022399,2]
[313949605,1707848997896,526.97854074,0.00022399,2]
[313949606,1707849002325,300.0,0.000224,2]
[313949607,1707849002473,150.0,0.000224,2]
[313949608,1707849002534,150.0,0.000224,2]
[313949609,1707849022184,491.28469563,0.00022399,2]
[313949610,1707849023687,181.71873109,0.00022399,2]
[313949611,1707849023709,450.69406113,0.00022399,2]
[313949612,1707849026458,204.19468112,0.00022399,2]
[313949613,1707849027609,18.11468447,0.00022399,2]
[313949614,1707849027634,163.49060403,0.00022399,2]
[313949651,1707849032301,509.51282269,0.00022399,2]
[313949652,1707849032327,673.00342672,0.00022399,2]
[313949653,1707849032354,196.776957,0.00022399,2]
[313949654,1707849034407,-945.74084083,0.000224,2]
[313949655,1707849034418,-532.65342694,0.000224,2]
[313949656,1707849034437,-864.68441708,0.000224,2]
[313949657,1707849034450,-491.37,0.000224,2]
[313949658,1707849034525,-255.4812832,0.000224,2]
[313949659,1707849034639,-4330.7657965,0.000224,2]
[313949661,1707849034649,-266.95882545,0.00022401,2]
[313949664,1707849034660,-284.38164498,0.00022401,2]
[313949666,1707849034670,-155.0,0.00022401,2]
[313949668,1707849034681,-402.84187618,0.00022401,2]
[313949669,1707849034690,-4269.4549921,0.00022401,2]
[313949671,1707849034701,-414.36901055,0.00022402,2]
[313949674,1707849034711,-152.58,0.00022405,2]
[313949676,1707849034722,-4723.06431297,0.00022428,2]
[313949678,1707849034732,-155.20292169,0.00022441,2]
[313949680,1707849034742,-155.20292169,0.00022555,2]
[313949682,1707849034753,-1344.5018718,0.00022561,2]
[313949684,1707849034763,-152.58,0.00022569,2]
[313949686,1707849034773,-174.37782574,0.00022666,2]
[313949688,1707849034784,-499.99,0.00022666,2]
[313949690,1707849034794,-229.28491076,0.00022666,2]
[313949692,1707849034804,-229.28491075,0.00022667,2]
[313949694,1707849034814,-229.28491075,0.00022667,2]
[313949695,1707849034824,-155.20292169,0.0002267,2]
[313949697,1707849034835,-152.58,0.00022732,2]
[313949699,1707849034845,-7479.24485999,0.00022754,2]
[313949702,1707849034856,-150.99,0.00022756,2]
[313949703,1707849034867,-334.22322076,0.00022764,2]
[313949705,1707849034877,-389.11282684,0.00022764,2]
[313949706,1707849034888,-231.43171172,0.00022764,2]
[313949707,1707849034898,-775.53574364,0.00022764,2]
[313949708,1707849034908,-375.82127149,0.00022764,2]
[313949709,1707849034918,-701.74428445,0.00022764,2]
[313949710,1707849034929,-10462.86915194,0.00022764,2]
[313949711,1707849034941,-1142.84461497,0.00022764,2]
[313949712,1707849034951,-200.32610195,0.00022764,2]
[313949713,1707849034962,-7433.76384141,0.00022764,2]
[313949714,1707849034971,-155.0,0.00022764,2]
[313949715,1707849034980,-339.47556128,0.00022764,2]
[313949716,1707849034990,-1366.66,0.00022764,2]
[313949717,1707849034999,-229.18394222,0.00022764,2]
[313949718,1707849035009,-534.81337932,0.00022765,2]
[313949719,1707849035018,-49628.08710858,0.00022765,2]
[313949720,1707849035028,-155.20292169,0.00022784,2]
[313949721,1707849035038,-319.62,0.00022818,2]
[313949722,1707849035048,-152.3142153,0.00022862,2]
[313949723,1707849035058,-152.58,0.00022895,2]
[313949724,1707849035067,-152.33334881,0.00022896,2]
[313949725,1707849035077,-494.45883995,0.00022897,2]
[313949726,1707849035438,-197.96719848,0.00022897,2]
[313949727,1707849035459,-526.54171103,0.00022897,2]
[313949728,1707849035473,-531.69250034,0.00022897,2]
[313949729,1707849035482,-1066.30932914,0.00022897,2]
[313949730,1707849035493,-18402.51486482,0.00022898,2]
[313949731,1707849035503,-152.33334879,0.00022898,2]
[313949732,1707849035514,-171.4408342,0.00022899,2]
[313949733,1707849035524,-155.20292169,0.00022899,2]
[313949734,1707849035533,-152.33334879,0.000229,2]
[313949735,1707849035543,-4441.55306567,0.000229,2]
[313949736,1707849035553,-209.32917285,0.000229,2]
[313949737,1707849035562,-186.00323889,0.00022985,2]
[313949738,1707849035571,-402.40657708,0.00022993,2]
[313949739,1707849035581,-420.2614556,0.00022993,2]
[313949740,1707849035590,-290.13196151,0.00022993,2]
[313949741,1707849035600,-526.74686188,0.00022993,2]
[313949742,1707849035609,-1050.85999492,0.00022993,2]
[313949743,1707849035618,-409.3626796,0.00022993,2]
[313949744,1707849035627,-366.13765275,0.00022994,2]
[313949745,1707849035637,-105519.5076441,0.00022995,2]
[313949746,1707849035650,-9324.06247159,0.00022995,2]
[313949747,1707849035663,-406.075,0.00022995,2]
[313949748,1707849035839,436.64786133,0.00022399,2]
[313949749,1707849035874,39.57860839,0.00022399,2]
[313949750,1707849035896,282.73975893,0.00022399,2]
[313949752,1707849038227,-9498.15892633,0.00022995,2]
[313949753,1707849038239,-5439.61900603,0.00022995,2]
[313949754,1707849038252,-25170.78351447,0.00022995,2]
[313949755,1707849038476,-2385.02671101,0.00022995,2]
[313949756,1707849038497,-63815.29571634,0.00022995,2]
[313949757,1707849038536,-62357.93557081,0.00022995,2]
[313949758,1707849038546,-2396.05595964,0.00022995,2]
[313949759,1707849038558,-2019.8,0.00022995,2]
[313949760,1707849038569,-1207.6,0.00022995,2]
[313949761,1707849038580,-1076.7,0.00022995,2]
[313949762,1707849038591,-305.51235568,0.00022995,2]
[313949763,1707849038603,-10729.1938462,0.00022995,2]
[313949764,1707849038615,-8917.86018334,0.00022995,2]
[313949765,1707849038638,-703.75012937,0.00022995,2]
[313949766,1707849038654,-2850.93961544,0.00022995,2]
[313949769,1707849038824,-469.63768121,0.00022995,2]
[313949770,1707849038835,-610.77352403,0.00022995,2]
[313949777,1707849040833,-1446.90354911,0.00022995,2]
[313949778,1707849040895,-445.58170002,0.00022995,2]
[313949779,1707849040907,-785.15857409,0.00022995,2]
[313949780,1707849040918,-1758.93979561,0.00022995,2]
[313949781,1707849040929,-4731.21895331,0.00022995,2]
[313949782,1707849040940,-1037.56110273,0.00022995,2]
[313949783,1707849040966,-691.78675921,0.00022995,2]
[313949784,1707849040977,-269.2302333,0.00022995,2]
[313949785,1707849041711,-645.07210633,0.00022995,2]
[313949786,1707849041723,-77421.51349461,0.00022995,2]
[313949787,1707849041735,-6934.23865513,0.00022995,2]
[313949796,1707849042138,-469.56244997,0.00022995,2]
[313949797,1707849042156,-1000.0,0.00022995,2]
[313949798,1707849042167,-912.88933438,0.00022995,2]
[313949799,1707849042179,-12287.66545607,0.00022995,2]
[313949800,1707849042191,-25228.60741065,0.00022995,2]
[313949816,1707849043272,-277.23927228,0.00022994,2]
[313949817,1707849043282,-242.38293402,0.00022994,2]
[313949818,1707849043291,-106.64951476,0.00022995,2]
[313949819,1707849043303,-373.36689,0.00022995,2]
[313949820,1707849043329,-511.680005,0.00022995,2]
[313949821,1707849043607,-857.98907699,0.00022995,2]
[313950080,1707849046211,-393.10205177,0.00022993,2]
[313950082,1707849046221,-185.03781889,0.00022994,2]
[313950084,1707849046230,-283.3947115,0.00022994,2]
[313950086,1707849046240,-609501.51368777,0.00022995,2]
[313950088,1707849046250,-3092.67715706,0.00022996,2]
[313950089,1707849046259,-527.29382982,0.00022997,2]
[313950090,1707849046268,-216.42781233,0.00022998,2]
[313950091,1707849046278,-1209.8078839,0.00022998,2]
[313950092,1707849046287,-1957.34969805,0.00022998,2]
[313950093,1707849046297,-1225.4738,0.00022998,2]
[313950094,1707849046306,-121659.24121242,0.00022998,2]
[313950095,1707849046318,-14172.17681873,0.00022998,2]
[313950146,1707849046801,-67522.46596261,0.00022998,2]
[313950149,1707849046830,-906.87830503,0.00022998,2]
[313950155,1707849046879,-291277.05674524,0.00022998,2]
[313950157,1707849046888,-3302.59035849,0.00022999,2]
[313950159,1707849046898,-1345.64497194,0.00022999,2]
[313950161,1707849046909,-208.48410677,0.00022999,2]
[313950163,1707849046918,-303.41266578,0.00022999,2]
[313950165,1707849046928,-387.1283615,0.00022999,2]
[313950167,1707849046937,-500.0,0.00022999,2]
[313950170,1707849046947,-500.0,0.00022999,2]
[313950172,1707849046956,-242.41906087,0.00022999,2]
[313950174,1707849046965,-138843.44940545,0.00023,2]
[313950307,1707849051858,200.0,0.000224,8]
[313950308,1707849053923,500.0,0.000225,8]
[313950309,1707849056179,800.0,0.000226,8]
[313950310,1707849058000,392.66407142,0.00022999,10]
[313950311,1707849058344,1100.0,0.000227,8]
[313950312,1707849060552,1400.0,0.000228,8]
[313950313,1707849062697,200.0,0.000229,8]
[313950314,1707849064649,150.0,0.00022078,2]
[313950315,1707849064670,19.38413044,0.00022078,2]
[313950316,1707849072122,2000.0,0.00021851,2]
[313950317,1707849122168,286.88,0.00022209,2]
[313950318,1707849124146,206.0,0.00022377,2]
[313950319,1707849146548,250.0,0.00022082,2]
[313950320,1707849192654,200.0,0.00022033,2]
[313950321,1707849237804,256.5130871,0.00022996,7]
[313950322,1707849283847,524.6,0.00021881,2]
[313950323,1707849289342,1190.45,0.00021848,2]
[313950324,1707849316693,693.55,0.00019897,2]
[313950325,1707849316905,693.55,0.00022161,2]
[313950327,1707849414349,153.06,0.00021888,2]
[313950328,1707849416354,165.24,0.00022377,2]
[313950329,1707849450142,-436.64786133,0.00022655,2]
[313950330,1707849450164,-219.21021995,0.00022655,2]
[313950331,1707849450185,-155.0,0.00022656,2]
[313950332,1707849450206,-266.95882545,0.00022656,2]
[313950333,1707849450227,-731.44,0.00022657,2]
[313950334,1707849450248,-190.74309327,0.00022657,2]
[313950335,1707849450646,-754.99774756,0.00022657,2]
[313950336,1707849450671,-1245.00225244,0.00022657,4]
[313950337,1707849450992,-2000.0,0.00022657,4]
[313950338,1707849451332,-452.69238858,0.00022657,4]
[313950339,1707849451354,-1379.29320641,0.00022658,2]
[313950340,1707849451375,-168.01440501,0.00022658,2]
[313950341,1707849451677,-464.39838721,0.00022658,2]
[313950342,1707849451699,-322.31836732,0.00022659,2]
[313950343,1707849451721,-155.0,0.00022659,2]
[313950344,1707849451741,-155.0,0.0002266,2]
[313950345,1707849451762,-903.28324547,0.00022661,2]
[313950346,1707849452246,-2000.0,0.00022661,2]
[313950347,1707849452867,-2000.0,0.00022661,2]
[313950348,1707849453201,-2000.0,0.00022661,2]
[313950349,1707849453769,-2000.0,0.00022661,2]
[313950350,1707849454413,-725.95,0.00022655,2]
[313950351,1707849454436,-216.29960539,0.00022656,2]
[313950352,1707849454460,-1057.75039461,0.00022661,2]
[313950353,1707849454908,-322.31836732,0.00022656,2]
[313950354,1707849454930,-595.05669293,0.00022661,2]
[313950355,1707849454952,-734.74,0.00022661,2]
[313950356,1707849454980,-347.88493975,0.00022662,2]
[313950357,1707849455443,-362.38506025,0.00022662,2]
[313950358,1707849455466,-730.78,0.00022665,2]
[313950359,1707849455488,-300.0,0.00022666,2]
[313950360,1707849455510,-150.0,0.00022666,2]
[313950361,1707849455530,-456.83493975,0.00022667,2]
[313950362,1707849455631,-188.93506025,0.00022667,2]
[313950363,1707849455654,-719.51,0.00022669,2]
[313950364,1707849455678,-1091.55493975,0.00022669,2]
[313950365,1707849457821,-2000.0,0.00022669,2]
[313950366,1707849458283,-2000.0,0.00022669,2]
[313950367,1707849458483,-2000.0,0.00022669,2]
[313950368,1707849458933,-2000.0,0.00022669,2]
[313950369,1707849459372,-2000.0,0.00022669,2]
[313950370,1707849459743,-2000.0,0.00022669,2]
[313950371,1707849460138,-2000.0,0.00022669,2]
[313950372,1707849461234,250.0,0.00021864,2]
[313950373,1707849461619,-2000.0,0.00022669,2]
[313950374,1707849462209,-310.27655167,0.00022669,2]
[313950375,1707849462231,-174.37782573,0.00022669,2]
[313950376,1707849462253,-435.8028521,0.00022669,2]
[313950377,1707849468384,840.62924919,0.00022669,2]
[313950378,1707849490564,-732.3,0.00022669,2]
[313950379,1707849490586,-721.89,0.00022669,2]
[313950380,1707849490607,-435.8028521,0.00022727,2]
[313950381,1707849490630,-110.0071479,0.00022749,2]
[313950383,1707849507354,-726.38,0.00022669,2]
[313950384,1707849507375,-423.62,0.00022749,2]
[313950385,1707849557580,-219.21021995,0.00022748,2]
[313950386,1707849557603,-176.3828521,0.00022749,2]
[313950387,1707849557627,-111.40692795,0.00022751,2]
[313950388,1707849573433,168.4,0.00021843,10]
[313950389,1707849577868,2000.0,0.00021843,2]
[313950390,1707849587937,-723.74,0.0002275,2]
[313950391,1707849587962,-730.95,0.0002275,2]
[313950392,1707849587983,-420.31,0.00022751,2]
[313950393,1707849592770,-190.00307205,0.00022751,2]
[313950394,1707849592791,-724.74,0.00022752,2]
[313950395,1707849592811,-724.34,0.00022752,2]
[313950396,1707849592831,-360.91692795,0.00022753,2]
[313950397,1707849593637,-357.85307205,0.00022753,2]
[313950398,1707849593658,-714.73,0.00022755,2]
[313950399,1707849593679,-712.53,0.00022758,2]
[313950400,1707849593700,-214.88692795,0.00022759,2]
[313950401,1707849594511,-500.52307205,0.00022759,2]
[313950402,1707849594532,-530.82392786,0.00022759,2]
[313950403,1707849594552,-150.0,0.00022761,2]
[313950404,1707849594572,-715.93,0.00022762,2]
[313950405,1707849594591,-102.72300009,0.00022762,2]
[313950406,1707849618167,18597.73,0.00022002,2]
[313950407,1707849623259,250.0,0.00022014,2]
[313950408,1707849633910,150.0,0.00022,2]
[313950409,1707849637612,-655.89699991,0.00022762,2]
[313950410,1707849637631,-603.1,0.00022762,2]
[313950411,1707849637652,-499.99,0.00022762,2]
[313950412,1707849637672,-1162.63,0.00022762,2]
[313950413,1707849637693,-728.09,0.00022762,2]
[313950414,1707849637713,-716.01,0.00022762,2]
[313950415,1707849637733,-716.33,0.00022764,2]
[313950416,1707849637998,-720.87,0.00022765,2]
[313950417,1707849638018,-939.50265871,0.00022766,2]
[313950418,1707849638038,-187.6706096,0.00022766,2]
[313950419,1707849638057,-348.80788742,0.00022766,2]
[313950420,1707849638077,-156.0211914,0.00022766,2]
[313950421,1707849638097,-265.84093922,0.00022766,2]
[313950422,1707849638117,-339.56457343,0.00022766,2]
[313950423,1707849638137,-215.85732373,0.00022766,2]
[313950424,1707849638157,-437.19598255,0.00022766,2]
[313950425,1707849638176,-1147.22059108,0.00022766,4]
[313950426,1707849638196,-155.0,0.00022766,2]
[313950427,1707849638215,-199.27184424,0.00022766,2]
[313950428,1707849638234,-6024.84698848,0.00022767,2]
[313950429,1707849638256,-738.32,0.00022769,2]
[313950430,1707849638276,-7601.96241023,0.0002277,2]
[313950431,1707849638761,500.0,0.00022,2]
[313950432,1707849643782,258.56,0.00022,2]
[313950433,1707849645022,258.56,0.00022137,2]
[313950434,1707849646292,258.56,0.00022274,2]
[313950435,1707849674273,-258.56,0.00022411,2]
[313950436,1707849674294,-500.0,0.00022548,2]
[313950437,1707849674316,-258.56,0.00022548,2]
[313950438,1707849674342,-720.34,0.00022679,2]
[313950439,1707849674363,-258.56,0.00022685,2]
[313950440,1707849674383,-103.98,0.0002277,2]
[313950441,1707849676344,500.0,0.00022035,2]
[313950442,1707849694629,-2364.0,0.00022668,2]
[313950443,1707849743116,559.37,0.00022101,2]
[313950444,1707849758233,992.04,0.0002211,2]
[313950445,1707849787881,580.32,0.0002208,2]
[313950446,1707849813853,206.0,0.00022357,2]
[313950447,1707849841975,633.95,0.00020007,2]
[313950448,1707849842222,633.95,0.00022271,2]
[313950450,1707849879250,151.69,0.00022245,2]
[313950451,1707849915205,250.0,0.00022,2]
[313950452,1707849940648,250.0,0.00021916,2]
[313950453,1707849942520,-150.0,0.00022667,2]
[313950454,1707849956658,-450.0,0.00022668,2]
[313950455,1707849983741,150.0,0.00021763,2]
[313950456,1707850012391,150.0,0.00021763,2]
[313950457,1707850014902,150.0,0.00022,2]
[313950918,1707850074716,150.0,0.00021886,2]
[313950919,1707850077302,183.28,0.00021886,2]
[313950920,1707850086234,2000.0,0.00021804,2]
[313950926,1707850097437,343.89,0.000218,2]
[313950927,1707850099317,699.62,0.00025,10]
[313950928,1707850109216,167.02,0.00021887,2]
[313950933,1707850167588,216.72,0.00021918,2]
[313950955,1707850231375,-165.99143384,0.00022663,2]
[313950957,1707850231385,-123.20698567,0.00022663,2]
[313950963,1707850231438,-138.27472559,0.00022663,2]
[313950964,1707850231448,-207.0453,0.00022663,2]
[313950965,1707850231457,-731.77,0.00022664,2]
[313950966,1707850231466,-730.53,0.00022664,2]
[313950967,1707850231476,-715.64,0.00022665,2]
[313950968,1707850231485,-730.53,0.00022666,2]
[313950969,1707850231495,-370.01905245,0.00022667,2]
[313950970,1707850231511,-340.39094755,0.00022667,2]
[313950971,1707850231520,-300.0,0.00022667,2]
[313950972,1707850231530,-716.28,0.00022668,2]
[313950973,1707850231539,-719.71,0.00022668,2]
[313950974,1707850231548,-264.04,0.00022668,2]
[313950975,1707850231558,-713.92,0.00022668,2]
[313950976,1707850231567,-724.54,0.00022668,2]
[313950977,1707850231576,-722.12,0.00022668,2]
[313950978,1707850231585,-713.77,0.00022668,2]
[313950979,1707850231594,-715.31,0.00022668,2]
[313950980,1707850231604,-710.15,0.00022668,2]
[313950981,1707850231613,-710.5,0.00022668,2]
[313950982,1707850231622,-731.53,0.00022668,2]
[313950983,1707850231631,-710.6,0.00022668,2]
[313950984,1707850231640,-713.43,0.00022668,2]
[313950985,1707850231649,-730.02,0.00022668,2]
[313950986,1707850231658,-725.71,0.00022668,2]
[313950987,1707850231667,-713.64,0.00022668,2]
[313950988,1707850231677,-736.52,0.00022668,2]
[313950989,1707850231687,-738.21,0.00022668,2]
[313950990,1707850231696,-727.9,0.00022668,2]
[313950992,1707850231705,-1344.5018717,0.00022705,2]
[313950994,1707850231715,-261.48171126,0.00022722,2]
[313950996,1707850231724,-150.0,0.00022733,2]
[313950998,1707850231733,-150.0,0.00022733,2]
[313951000,1707850231742,-150.0,0.00022738,2]
[313951002,1707850231752,-1500.0,0.00022751,2]
[313951004,1707850231762,-599.27979208,0.00022762,2]
[313951006,1707850231772,-499.99,0.00022763,2]
[313951008,1707850231784,-300.0,0.00022768,2]
[313951010,1707850231793,-150.0,0.00022769,2]
[313951012,1707850231803,-150.0,0.00022769,2]
[313951013,1707850231812,-150.0,0.0002277,2]
[313951014,1707850231822,-712.74,0.0002277,2]
[313951015,1707850231832,-1500.0,0.00022771,2]
[313951016,1707850231841,-150.0,0.00022777,2]
[313951017,1707850231852,-261.48171126,0.00022782,2]
[313951018,1707850231862,-150.0,0.00022786,2]
[313951019,1707850231871,-150.0,0.0002279,2]
[313951020,1707850231881,-179.3085481,0.00022808,2]
[313951021,1707850231890,-1500.0,0.00022809,2]
[313951022,1707850231900,-313694.74568633,0.00022809,2]
[313951023,1707850232352,-1074.00106458,0.00022809,2]
[313951024,1707850232378,-20193.0302846,0.00022809,2]
[313951025,1707850232389,-2007.78310769,0.00022809,2]
[313951026,1707850233048,-3.27151358,0.00022809,2]
[313951034,1707850237384,-1500.41807708,0.00022809,2]
[313951035,1707850237396,-108844.97742604,0.00022809,2]
[313951036,1707850237445,-294.08548322,0.00022809,2]
[313951037,1707850237517,-2849.96077086,0.00022809,2]
[313951038,1707850237652,-1416.57063969,0.00022809,2]
[313951039,1707850237665,-431.95013453,0.00022809,2]
[313951040,1707850237715,-34700.85390835,0.00022809,2]
[313951041,1707850237728,-2584.43499299,0.00022809,2]